{"text_format":"3","workbook":"xlsx","n_sheets":5,"sheets":["Rechnung","Kunden","Rechnungen – Hauptblatt","Rechnungsdetails","Info zu diesem Rechnungstracker"],"not_rendered":{"defined_names":8},"read":"whole","date_system":"1900"}

{"sheet":"Rechnung","index":0,"n_rows":39,"n_cols":7,"rows_kept":39,"merged":[[1,1,1,2],[1,3,1,4],[1,5,1,6],[2,1,2,2],[2,3,2,4],[2,5,2,6],[3,3,3,4],[4,3,4,4],[5,3,5,4],[37,1,37,4],[38,1,38,4]]}
[null,"Firmenname"]
[null,"Straße",null,"T: Telefonnummer",null,"E-Mail"]
[null,"PLZ Ort",null,"F: Faxnummer",null,"Website"]
[null,"Rechnungsempfänger:",{"$f":"IFERROR(VLOOKUP(VLOOKUP(rngInvoice,InvoicesMain[],2,FALSE),Kundenliste[],3,TRUE),\"\")","v":"Contoso, Ltd"},{"$f":"\"Telefon: \"&IFERROR(VLOOKUP(VLOOKUP(rngInvoice,InvoicesMain[],2,FALSE),Kundenliste[],9,FALSE),\"\")","v":"Telefon: (0432) 5 55 01 89"},null,"Rechnungsnummer:","3-456-2"]
[null,"Adresse:",{"$f":"IFERROR(IF((VLOOKUP(VLOOKUP(rngInvoice,InvoicesMain[],2,FALSE),Kundenliste[],5,FALSE))=\"\",\"\",(VLOOKUP(VLOOKUP(rngInvoice,InvoicesMain[],2,FALSE),Kundenliste[],5,FALSE))),\"\")","v":"Walnussallee 167"},{"$f":"\"Fax:     \"&IFERROR(VLOOKUP(VLOOKUP(rngInvoice,InvoicesMain[],2,FALSE),Kundenliste[],11,FALSE),\"\")","v":"Fax:     (0432) 5 55 01 23"},null,"Rechnungsdatum:",{"$f":"IFERROR(IF(VLOOKUP(rngInvoice,InvoicesMain[],3,FALSE)=\"\",\"\",VLOOKUP(rngInvoice,InvoicesMain[],3,FALSE)),\"\")","v":{"v":43685,"d":"4368500.00%"}}]
[null,null,{"$f":"IFERROR(VLOOKUP(VLOOKUP(rngInvoice,InvoicesMain[],2,FALSE),Kundenliste[],6,FALSE)&\", \"& VLOOKUP(VLOOKUP(G4,InvoicesMain[],2,FALSE),Kundenliste[],7,FALSE)&\" \"&VLOOKUP(VLOOKUP(G4,InvoicesMain[],2,FALSE),Kundenliste[],8,FALSE),\"\")","v":"Mollenberg, BW 098765"},{"$f":"\"E-Mail-Adresse: \"&IFERROR(VLOOKUP(VLOOKUP(rngInvoice,InvoicesMain[],2,FALSE),Kundenliste[],10,FALSE),\"\")","v":"E-Mail-Adresse: jemand@example.com"}]
[null,{"$f":"\"Rechnung für: \"&IFERROR(VLOOKUP(rngInvoice,InvoicesMain[],4),\"\")","v":"Rechnung für: Projekt 2"}]
[null,"Artikelnr.","Beschreibung","Menge","Preis je Einheit","Rabatt","Preis"]
[null,{"$f":"IFERROR(INDEX(Rechnungsdetails[],SMALL(IF(Rechnungsdetails[Rechnungsnr.]=rngInvoice,ROW(Rechnungsdetails[])-ROW(Rechnungsdetails[#Headers])), ROW(1:1)), MATCH($B$8, Rechnungsdetails[#Headers], 0)),\"\")","v":"Z4567"},{"$f":"IFERROR(INDEX(Rechnungsdetails[],SMALL(IF(Rechnungsdetails[Rechnungsnr.]=rngInvoice,ROW(Rechnungsdetails[])-ROW(Rechnungsdetails[#Headers])), ROW(1:1)), MATCH($C$8, Rechnungsdetails[#Headers], 0)),\"\")","v":"Rechnung 3-456-2 Daten 1"},{"$f":"IFERROR(INDEX(Rechnungsdetails[],SMALL(IF(Rechnungsdetails[Rechnungsnr.]=rngInvoice,ROW(Rechnungsdetails[])-ROW(Rechnungsdetails[#Headers])), ROW(1:1)), MATCH($D$8, Rechnungsdetails[#Headers], 0)),\"\")","v":39},{"$f":"IFERROR(INDEX(Rechnungsdetails[],SMALL(IF(Rechnungsdetails[Rechnungsnr.]=rngInvoice,ROW(Rechnungsdetails[])-ROW(Rechnungsdetails[#Headers])), ROW(1:1)), MATCH($E$8, Rechnungsdetails[#Headers], 0)),\"\")","v":{"v":5,"d":"5.00 €"}},{"$f":"IFERROR(INDEX(Rechnungsdetails[],SMALL(IF(Rechnungsdetails[Rechnungsnr.]=rngInvoice,ROW(Rechnungsdetails[])-ROW(Rechnungsdetails[#Headers])), ROW(1:1)), MATCH($F$8, Rechnungsdetails[#Headers], 0)),\"\")","v":0},{"$f":"IFERROR((D9*E9)-F9,\"\")","v":{"v":195,"d":"195.00 €"}}]
[null,{"$f":"IFERROR(INDEX(Rechnungsdetails[],SMALL(IF(Rechnungsdetails[Rechnungsnr.]=rngInvoice,ROW(Rechnungsdetails[])-ROW(Rechnungsdetails[#Headers])), ROW(2:2)), MATCH($B$8, Rechnungsdetails[#Headers], 0)),\"\")","v":"Z4568"},{"$f":"IFERROR(INDEX(Rechnungsdetails[],SMALL(IF(Rechnungsdetails[Rechnungsnr.]=rngInvoice,ROW(Rechnungsdetails[])-ROW(Rechnungsdetails[#Headers])), ROW(2:2)), MATCH($C$8, Rechnungsdetails[#Headers], 0)),\"\")","v":"Rechnung 3-456-2 Daten 2"},{"$f":"IFERROR(INDEX(Rechnungsdetails[],SMALL(IF(Rechnungsdetails[Rechnungsnr.]=rngInvoice,ROW(Rechnungsdetails[])-ROW(Rechnungsdetails[#Headers])), ROW(2:2)), MATCH($D$8, Rechnungsdetails[#Headers], 0)),\"\")","v":40},{"$f":"IFERROR(INDEX(Rechnungsdetails[],SMALL(IF(Rechnungsdetails[Rechnungsnr.]=rngInvoice,ROW(Rechnungsdetails[])-ROW(Rechnungsdetails[#Headers])), ROW(2:2)), MATCH($E$8, Rechnungsdetails[#Headers], 0)),\"\")","v":{"v":4,"d":"4.00 €"}},{"$f":"IFERROR(INDEX(Rechnungsdetails[],SMALL(IF(Rechnungsdetails[Rechnungsnr.]=rngInvoice,ROW(Rechnungsdetails[])-ROW(Rechnungsdetails[#Headers])), ROW(2:2)), MATCH($F$8, Rechnungsdetails[#Headers], 0)),\"\")","v":{"v":5,"d":"5.00 €"}},{"v":155,"d":"155.00 €"}]
[null,{"$f":"IFERROR(INDEX(Rechnungsdetails[],SMALL(IF(Rechnungsdetails[Rechnungsnr.]=rngInvoice,ROW(Rechnungsdetails[])-ROW(Rechnungsdetails[#Headers])), ROW(3:3)), MATCH($B$8, Rechnungsdetails[#Headers], 0)),\"\")","v":"Z4569"},{"$f":"IFERROR(INDEX(Rechnungsdetails[],SMALL(IF(Rechnungsdetails[Rechnungsnr.]=rngInvoice,ROW(Rechnungsdetails[])-ROW(Rechnungsdetails[#Headers])), ROW(3:3)), MATCH($C$8, Rechnungsdetails[#Headers], 0)),\"\")","v":"Rechnung 3-456-2 Daten 3"},{"$f":"IFERROR(INDEX(Rechnungsdetails[],SMALL(IF(Rechnungsdetails[Rechnungsnr.]=rngInvoice,ROW(Rechnungsdetails[])-ROW(Rechnungsdetails[#Headers])), ROW(3:3)), MATCH($D$8, Rechnungsdetails[#Headers], 0)),\"\")","v":30},{"$f":"IFERROR(INDEX(Rechnungsdetails[],SMALL(IF(Rechnungsdetails[Rechnungsnr.]=rngInvoice,ROW(Rechnungsdetails[])-ROW(Rechnungsdetails[#Headers])), ROW(3:3)), MATCH($E$8, Rechnungsdetails[#Headers], 0)),\"\")","v":{"v":6,"d":"6.00 €"}},{"$f":"IFERROR(INDEX(Rechnungsdetails[],SMALL(IF(Rechnungsdetails[Rechnungsnr.]=rngInvoice,ROW(Rechnungsdetails[])-ROW(Rechnungsdetails[#Headers])), ROW(3:3)), MATCH($F$8, Rechnungsdetails[#Headers], 0)),\"\")","v":{"v":7,"d":"7.00 €"}},{"v":173,"d":"173.00 €"}]
[null,{"$f":"IFERROR(INDEX(Rechnungsdetails[],SMALL(IF(Rechnungsdetails[Rechnungsnr.]=rngInvoice,ROW(Rechnungsdetails[])-ROW(Rechnungsdetails[#Headers])), ROW(4:4)), MATCH($B$8, Rechnungsdetails[#Headers], 0)),\"\")","v":"Z4570"},{"$f":"IFERROR(INDEX(Rechnungsdetails[],SMALL(IF(Rechnungsdetails[Rechnungsnr.]=rngInvoice,ROW(Rechnungsdetails[])-ROW(Rechnungsdetails[#Headers])), ROW(4:4)), MATCH($C$8, Rechnungsdetails[#Headers], 0)),\"\")","v":"Rechnung 3-456-2 Daten 4"},{"$f":"IFERROR(INDEX(Rechnungsdetails[],SMALL(IF(Rechnungsdetails[Rechnungsnr.]=rngInvoice,ROW(Rechnungsdetails[])-ROW(Rechnungsdetails[#Headers])), ROW(4:4)), MATCH($D$8, Rechnungsdetails[#Headers], 0)),\"\")","v":40},{"$f":"IFERROR(INDEX(Rechnungsdetails[],SMALL(IF(Rechnungsdetails[Rechnungsnr.]=rngInvoice,ROW(Rechnungsdetails[])-ROW(Rechnungsdetails[#Headers])), ROW(4:4)), MATCH($E$8, Rechnungsdetails[#Headers], 0)),\"\")","v":{"v":7,"d":"7.00 €"}},{"$f":"IFERROR(INDEX(Rechnungsdetails[],SMALL(IF(Rechnungsdetails[Rechnungsnr.]=rngInvoice,ROW(Rechnungsdetails[])-ROW(Rechnungsdetails[#Headers])), ROW(4:4)), MATCH($F$8, Rechnungsdetails[#Headers], 0)),\"\")","v":0},{"v":280,"d":"280.00 €"}]
[null,{"$f":"IFERROR(INDEX(Rechnungsdetails[],SMALL(IF(Rechnungsdetails[Rechnungsnr.]=rngInvoice,ROW(Rechnungsdetails[])-ROW(Rechnungsdetails[#Headers])), ROW(5:5)), MATCH($B$8, Rechnungsdetails[#Headers], 0)),\"\")","v":"Z4571"},{"$f":"IFERROR(INDEX(Rechnungsdetails[],SMALL(IF(Rechnungsdetails[Rechnungsnr.]=rngInvoice,ROW(Rechnungsdetails[])-ROW(Rechnungsdetails[#Headers])), ROW(5:5)), MATCH($C$8, Rechnungsdetails[#Headers], 0)),\"\")","v":"Rechnung 3-456-2 Daten 5"},{"$f":"IFERROR(INDEX(Rechnungsdetails[],SMALL(IF(Rechnungsdetails[Rechnungsnr.]=rngInvoice,ROW(Rechnungsdetails[])-ROW(Rechnungsdetails[#Headers])), ROW(5:5)), MATCH($D$8, Rechnungsdetails[#Headers], 0)),\"\")","v":10},{"$f":"IFERROR(INDEX(Rechnungsdetails[],SMALL(IF(Rechnungsdetails[Rechnungsnr.]=rngInvoice,ROW(Rechnungsdetails[])-ROW(Rechnungsdetails[#Headers])), ROW(5:5)), MATCH($E$8, Rechnungsdetails[#Headers], 0)),\"\")","v":{"v":4,"d":"4.00 €"}},{"$f":"IFERROR(INDEX(Rechnungsdetails[],SMALL(IF(Rechnungsdetails[Rechnungsnr.]=rngInvoice,ROW(Rechnungsdetails[])-ROW(Rechnungsdetails[#Headers])), ROW(5:5)), MATCH($F$8, Rechnungsdetails[#Headers], 0)),\"\")","v":0},{"v":40,"d":"40.00 €"}]
[null,{"$f":"IFERROR(INDEX(Rechnungsdetails[],SMALL(IF(Rechnungsdetails[Rechnungsnr.]=rngInvoice,ROW(Rechnungsdetails[])-ROW(Rechnungsdetails[#Headers])), ROW(6:6)), MATCH($B$8, Rechnungsdetails[#Headers], 0)),\"\")","v":"Z4572"},{"$f":"IFERROR(INDEX(Rechnungsdetails[],SMALL(IF(Rechnungsdetails[Rechnungsnr.]=rngInvoice,ROW(Rechnungsdetails[])-ROW(Rechnungsdetails[#Headers])), ROW(6:6)), MATCH($C$8, Rechnungsdetails[#Headers], 0)),\"\")","v":"Rechnung 3-456-2 Daten 6"},{"$f":"IFERROR(INDEX(Rechnungsdetails[],SMALL(IF(Rechnungsdetails[Rechnungsnr.]=rngInvoice,ROW(Rechnungsdetails[])-ROW(Rechnungsdetails[#Headers])), ROW(6:6)), MATCH($D$8, Rechnungsdetails[#Headers], 0)),\"\")","v":5},{"$f":"IFERROR(INDEX(Rechnungsdetails[],SMALL(IF(Rechnungsdetails[Rechnungsnr.]=rngInvoice,ROW(Rechnungsdetails[])-ROW(Rechnungsdetails[#Headers])), ROW(6:6)), MATCH($E$8, Rechnungsdetails[#Headers], 0)),\"\")","v":{"v":8,"d":"8.00 €"}},{"$f":"IFERROR(INDEX(Rechnungsdetails[],SMALL(IF(Rechnungsdetails[Rechnungsnr.]=rngInvoice,ROW(Rechnungsdetails[])-ROW(Rechnungsdetails[#Headers])), ROW(6:6)), MATCH($F$8, Rechnungsdetails[#Headers], 0)),\"\")","v":0},{"v":40,"d":"40.00 €"}]
[null,{"$f":"IFERROR(INDEX(Rechnungsdetails[],SMALL(IF(Rechnungsdetails[Rechnungsnr.]=rngInvoice,ROW(Rechnungsdetails[])-ROW(Rechnungsdetails[#Headers])), ROW(7:7)), MATCH($B$8, Rechnungsdetails[#Headers], 0)),\"\")","v":"Z4573"},{"$f":"IFERROR(INDEX(Rechnungsdetails[],SMALL(IF(Rechnungsdetails[Rechnungsnr.]=rngInvoice,ROW(Rechnungsdetails[])-ROW(Rechnungsdetails[#Headers])), ROW(7:7)), MATCH($C$8, Rechnungsdetails[#Headers], 0)),\"\")","v":"Rechnung 3-456-2 Daten 7"},{"$f":"IFERROR(INDEX(Rechnungsdetails[],SMALL(IF(Rechnungsdetails[Rechnungsnr.]=rngInvoice,ROW(Rechnungsdetails[])-ROW(Rechnungsdetails[#Headers])), ROW(7:7)), MATCH($D$8, Rechnungsdetails[#Headers], 0)),\"\")","v":70},{"$f":"IFERROR(INDEX(Rechnungsdetails[],SMALL(IF(Rechnungsdetails[Rechnungsnr.]=rngInvoice,ROW(Rechnungsdetails[])-ROW(Rechnungsdetails[#Headers])), ROW(7:7)), MATCH($E$8, Rechnungsdetails[#Headers], 0)),\"\")","v":{"v":6,"d":"6.00 €"}},{"$f":"IFERROR(INDEX(Rechnungsdetails[],SMALL(IF(Rechnungsdetails[Rechnungsnr.]=rngInvoice,ROW(Rechnungsdetails[])-ROW(Rechnungsdetails[#Headers])), ROW(7:7)), MATCH($F$8, Rechnungsdetails[#Headers], 0)),\"\")","v":0},{"v":420,"d":"420.00 €"}]
[null,{"$f":"IFERROR(INDEX(Rechnungsdetails[],SMALL(IF(Rechnungsdetails[Rechnungsnr.]=rngInvoice,ROW(Rechnungsdetails[])-ROW(Rechnungsdetails[#Headers])), ROW(8:8)), MATCH($B$8, Rechnungsdetails[#Headers], 0)),\"\")","v":"Z4574"},{"$f":"IFERROR(INDEX(Rechnungsdetails[],SMALL(IF(Rechnungsdetails[Rechnungsnr.]=rngInvoice,ROW(Rechnungsdetails[])-ROW(Rechnungsdetails[#Headers])), ROW(8:8)), MATCH($C$8, Rechnungsdetails[#Headers], 0)),\"\")","v":"Rechnung 3-456-2 Daten 8"},{"$f":"IFERROR(INDEX(Rechnungsdetails[],SMALL(IF(Rechnungsdetails[Rechnungsnr.]=rngInvoice,ROW(Rechnungsdetails[])-ROW(Rechnungsdetails[#Headers])), ROW(8:8)), MATCH($D$8, Rechnungsdetails[#Headers], 0)),\"\")","v":25},{"$f":"IFERROR(INDEX(Rechnungsdetails[],SMALL(IF(Rechnungsdetails[Rechnungsnr.]=rngInvoice,ROW(Rechnungsdetails[])-ROW(Rechnungsdetails[#Headers])), ROW(8:8)), MATCH($E$8, Rechnungsdetails[#Headers], 0)),\"\")","v":{"v":4,"d":"4.00 €"}},{"$f":"IFERROR(INDEX(Rechnungsdetails[],SMALL(IF(Rechnungsdetails[Rechnungsnr.]=rngInvoice,ROW(Rechnungsdetails[])-ROW(Rechnungsdetails[#Headers])), ROW(8:8)), MATCH($F$8, Rechnungsdetails[#Headers], 0)),\"\")","v":0},{"v":100,"d":"100.00 €"}]
[null,{"$f":"IFERROR(INDEX(Rechnungsdetails[],SMALL(IF(Rechnungsdetails[Rechnungsnr.]=rngInvoice,ROW(Rechnungsdetails[])-ROW(Rechnungsdetails[#Headers])), ROW(9:9)), MATCH($B$8, Rechnungsdetails[#Headers], 0)),\"\")","v":"Z4575"},{"$f":"IFERROR(INDEX(Rechnungsdetails[],SMALL(IF(Rechnungsdetails[Rechnungsnr.]=rngInvoice,ROW(Rechnungsdetails[])-ROW(Rechnungsdetails[#Headers])), ROW(9:9)), MATCH($C$8, Rechnungsdetails[#Headers], 0)),\"\")","v":"Rechnung 3-456-2 Daten 9"},{"$f":"IFERROR(INDEX(Rechnungsdetails[],SMALL(IF(Rechnungsdetails[Rechnungsnr.]=rngInvoice,ROW(Rechnungsdetails[])-ROW(Rechnungsdetails[#Headers])), ROW(9:9)), MATCH($D$8, Rechnungsdetails[#Headers], 0)),\"\")","v":5},{"$f":"IFERROR(INDEX(Rechnungsdetails[],SMALL(IF(Rechnungsdetails[Rechnungsnr.]=rngInvoice,ROW(Rechnungsdetails[])-ROW(Rechnungsdetails[#Headers])), ROW(9:9)), MATCH($E$8, Rechnungsdetails[#Headers], 0)),\"\")","v":{"v":7,"d":"7.00 €"}},{"$f":"IFERROR(INDEX(Rechnungsdetails[],SMALL(IF(Rechnungsdetails[Rechnungsnr.]=rngInvoice,ROW(Rechnungsdetails[])-ROW(Rechnungsdetails[#Headers])), ROW(9:9)), MATCH($F$8, Rechnungsdetails[#Headers], 0)),\"\")","v":{"v":3,"d":"3.00 €"}},{"v":32,"d":"32.00 €"}]
[null,{"$f":"IFERROR(INDEX(Rechnungsdetails[],SMALL(IF(Rechnungsdetails[Rechnungsnr.]=rngInvoice,ROW(Rechnungsdetails[])-ROW(Rechnungsdetails[#Headers])), ROW(10:10)), MATCH($B$8, Rechnungsdetails[#Headers], 0)),\"\")","v":"Z4576"},{"$f":"IFERROR(INDEX(Rechnungsdetails[],SMALL(IF(Rechnungsdetails[Rechnungsnr.]=rngInvoice,ROW(Rechnungsdetails[])-ROW(Rechnungsdetails[#Headers])), ROW(10:10)), MATCH($C$8, Rechnungsdetails[#Headers], 0)),\"\")","v":"Rechnung 3-456-2 Daten 10"},{"$f":"IFERROR(INDEX(Rechnungsdetails[],SMALL(IF(Rechnungsdetails[Rechnungsnr.]=rngInvoice,ROW(Rechnungsdetails[])-ROW(Rechnungsdetails[#Headers])), ROW(10:10)), MATCH($D$8, Rechnungsdetails[#Headers], 0)),\"\")","v":80},{"$f":"IFERROR(INDEX(Rechnungsdetails[],SMALL(IF(Rechnungsdetails[Rechnungsnr.]=rngInvoice,ROW(Rechnungsdetails[])-ROW(Rechnungsdetails[#Headers])), ROW(10:10)), MATCH($E$8, Rechnungsdetails[#Headers], 0)),\"\")","v":{"v":1,"d":"1.00 €"}},{"$f":"IFERROR(INDEX(Rechnungsdetails[],SMALL(IF(Rechnungsdetails[Rechnungsnr.]=rngInvoice,ROW(Rechnungsdetails[])-ROW(Rechnungsdetails[#Headers])), ROW(10:10)), MATCH($F$8, Rechnungsdetails[#Headers], 0)),\"\")","v":0},{"v":80,"d":"80.00 €"}]
[null,{"$f":"IFERROR(INDEX(Rechnungsdetails[],SMALL(IF(Rechnungsdetails[Rechnungsnr.]=rngInvoice,ROW(Rechnungsdetails[])-ROW(Rechnungsdetails[#Headers])), ROW(11:11)), MATCH($B$8, Rechnungsdetails[#Headers], 0)),\"\")","v":"Z4577"},{"$f":"IFERROR(INDEX(Rechnungsdetails[],SMALL(IF(Rechnungsdetails[Rechnungsnr.]=rngInvoice,ROW(Rechnungsdetails[])-ROW(Rechnungsdetails[#Headers])), ROW(11:11)), MATCH($C$8, Rechnungsdetails[#Headers], 0)),\"\")","v":"Rechnung 3-456-2 Daten 11"},{"$f":"IFERROR(INDEX(Rechnungsdetails[],SMALL(IF(Rechnungsdetails[Rechnungsnr.]=rngInvoice,ROW(Rechnungsdetails[])-ROW(Rechnungsdetails[#Headers])), ROW(11:11)), MATCH($D$8, Rechnungsdetails[#Headers], 0)),\"\")","v":65},{"$f":"IFERROR(INDEX(Rechnungsdetails[],SMALL(IF(Rechnungsdetails[Rechnungsnr.]=rngInvoice,ROW(Rechnungsdetails[])-ROW(Rechnungsdetails[#Headers])), ROW(11:11)), MATCH($E$8, Rechnungsdetails[#Headers], 0)),\"\")","v":{"v":7,"d":"7.00 €"}},{"$f":"IFERROR(INDEX(Rechnungsdetails[],SMALL(IF(Rechnungsdetails[Rechnungsnr.]=rngInvoice,ROW(Rechnungsdetails[])-ROW(Rechnungsdetails[#Headers])), ROW(11:11)), MATCH($F$8, Rechnungsdetails[#Headers], 0)),\"\")","v":0},{"v":455,"d":"455.00 €"}]
[null,{"$f":"IFERROR(INDEX(Rechnungsdetails[],SMALL(IF(Rechnungsdetails[Rechnungsnr.]=rngInvoice,ROW(Rechnungsdetails[])-ROW(Rechnungsdetails[#Headers])), ROW(12:12)), MATCH($B$8, Rechnungsdetails[#Headers], 0)),\"\")","v":"Z4578"},{"$f":"IFERROR(INDEX(Rechnungsdetails[],SMALL(IF(Rechnungsdetails[Rechnungsnr.]=rngInvoice,ROW(Rechnungsdetails[])-ROW(Rechnungsdetails[#Headers])), ROW(12:12)), MATCH($C$8, Rechnungsdetails[#Headers], 0)),\"\")","v":"Rechnung 3-456-2 Daten 12"},{"$f":"IFERROR(INDEX(Rechnungsdetails[],SMALL(IF(Rechnungsdetails[Rechnungsnr.]=rngInvoice,ROW(Rechnungsdetails[])-ROW(Rechnungsdetails[#Headers])), ROW(12:12)), MATCH($D$8, Rechnungsdetails[#Headers], 0)),\"\")","v":44},{"$f":"IFERROR(INDEX(Rechnungsdetails[],SMALL(IF(Rechnungsdetails[Rechnungsnr.]=rngInvoice,ROW(Rechnungsdetails[])-ROW(Rechnungsdetails[#Headers])), ROW(12:12)), MATCH($E$8, Rechnungsdetails[#Headers], 0)),\"\")","v":{"v":1,"d":"1.00 €"}},{"$f":"IFERROR(INDEX(Rechnungsdetails[],SMALL(IF(Rechnungsdetails[Rechnungsnr.]=rngInvoice,ROW(Rechnungsdetails[])-ROW(Rechnungsdetails[#Headers])), ROW(12:12)), MATCH($F$8, Rechnungsdetails[#Headers], 0)),\"\")","v":0},{"v":44,"d":"44.00 €"}]
[null,{"$f":"IFERROR(INDEX(Rechnungsdetails[],SMALL(IF(Rechnungsdetails[Rechnungsnr.]=rngInvoice,ROW(Rechnungsdetails[])-ROW(Rechnungsdetails[#Headers])), ROW(13:13)), MATCH($B$8, Rechnungsdetails[#Headers], 0)),\"\")","v":""},{"$f":"IFERROR(INDEX(Rechnungsdetails[],SMALL(IF(Rechnungsdetails[Rechnungsnr.]=rngInvoice,ROW(Rechnungsdetails[])-ROW(Rechnungsdetails[#Headers])), ROW(13:13)), MATCH($C$8, Rechnungsdetails[#Headers], 0)),\"\")","v":""},{"$f":"IFERROR(INDEX(Rechnungsdetails[],SMALL(IF(Rechnungsdetails[Rechnungsnr.]=rngInvoice,ROW(Rechnungsdetails[])-ROW(Rechnungsdetails[#Headers])), ROW(13:13)), MATCH($D$8, Rechnungsdetails[#Headers], 0)),\"\")","v":""},{"$f":"IFERROR(INDEX(Rechnungsdetails[],SMALL(IF(Rechnungsdetails[Rechnungsnr.]=rngInvoice,ROW(Rechnungsdetails[])-ROW(Rechnungsdetails[#Headers])), ROW(13:13)), MATCH($E$8, Rechnungsdetails[#Headers], 0)),\"\")","v":""},{"$f":"IFERROR(INDEX(Rechnungsdetails[],SMALL(IF(Rechnungsdetails[Rechnungsnr.]=rngInvoice,ROW(Rechnungsdetails[])-ROW(Rechnungsdetails[#Headers])), ROW(13:13)), MATCH($F$8, Rechnungsdetails[#Headers], 0)),\"\")","v":""},""]
[null,{"$f":"IFERROR(INDEX(Rechnungsdetails[],SMALL(IF(Rechnungsdetails[Rechnungsnr.]=rngInvoice,ROW(Rechnungsdetails[])-ROW(Rechnungsdetails[#Headers])), ROW(14:14)), MATCH($B$8, Rechnungsdetails[#Headers], 0)),\"\")","v":""},{"$f":"IFERROR(INDEX(Rechnungsdetails[],SMALL(IF(Rechnungsdetails[Rechnungsnr.]=rngInvoice,ROW(Rechnungsdetails[])-ROW(Rechnungsdetails[#Headers])), ROW(14:14)), MATCH($C$8, Rechnungsdetails[#Headers], 0)),\"\")","v":""},{"$f":"IFERROR(INDEX(Rechnungsdetails[],SMALL(IF(Rechnungsdetails[Rechnungsnr.]=rngInvoice,ROW(Rechnungsdetails[])-ROW(Rechnungsdetails[#Headers])), ROW(14:14)), MATCH($D$8, Rechnungsdetails[#Headers], 0)),\"\")","v":""},{"$f":"IFERROR(INDEX(Rechnungsdetails[],SMALL(IF(Rechnungsdetails[Rechnungsnr.]=rngInvoice,ROW(Rechnungsdetails[])-ROW(Rechnungsdetails[#Headers])), ROW(14:14)), MATCH($E$8, Rechnungsdetails[#Headers], 0)),\"\")","v":""},{"$f":"IFERROR(INDEX(Rechnungsdetails[],SMALL(IF(Rechnungsdetails[Rechnungsnr.]=rngInvoice,ROW(Rechnungsdetails[])-ROW(Rechnungsdetails[#Headers])), ROW(14:14)), MATCH($F$8, Rechnungsdetails[#Headers], 0)),\"\")","v":""},""]
[null,{"$f":"IFERROR(INDEX(Rechnungsdetails[],SMALL(IF(Rechnungsdetails[Rechnungsnr.]=rngInvoice,ROW(Rechnungsdetails[])-ROW(Rechnungsdetails[#Headers])), ROW(15:15)), MATCH($B$8, Rechnungsdetails[#Headers], 0)),\"\")","v":""},{"$f":"IFERROR(INDEX(Rechnungsdetails[],SMALL(IF(Rechnungsdetails[Rechnungsnr.]=rngInvoice,ROW(Rechnungsdetails[])-ROW(Rechnungsdetails[#Headers])), ROW(15:15)), MATCH($C$8, Rechnungsdetails[#Headers], 0)),\"\")","v":""},{"$f":"IFERROR(INDEX(Rechnungsdetails[],SMALL(IF(Rechnungsdetails[Rechnungsnr.]=rngInvoice,ROW(Rechnungsdetails[])-ROW(Rechnungsdetails[#Headers])), ROW(15:15)), MATCH($D$8, Rechnungsdetails[#Headers], 0)),\"\")","v":""},{"$f":"IFERROR(INDEX(Rechnungsdetails[],SMALL(IF(Rechnungsdetails[Rechnungsnr.]=rngInvoice,ROW(Rechnungsdetails[])-ROW(Rechnungsdetails[#Headers])), ROW(15:15)), MATCH($E$8, Rechnungsdetails[#Headers], 0)),\"\")","v":""},{"$f":"IFERROR(INDEX(Rechnungsdetails[],SMALL(IF(Rechnungsdetails[Rechnungsnr.]=rngInvoice,ROW(Rechnungsdetails[])-ROW(Rechnungsdetails[#Headers])), ROW(15:15)), MATCH($F$8, Rechnungsdetails[#Headers], 0)),\"\")","v":""},""]
[null,{"$f":"IFERROR(INDEX(Rechnungsdetails[],SMALL(IF(Rechnungsdetails[Rechnungsnr.]=rngInvoice,ROW(Rechnungsdetails[])-ROW(Rechnungsdetails[#Headers])), ROW(16:16)), MATCH($B$8, Rechnungsdetails[#Headers], 0)),\"\")","v":""},{"$f":"IFERROR(INDEX(Rechnungsdetails[],SMALL(IF(Rechnungsdetails[Rechnungsnr.]=rngInvoice,ROW(Rechnungsdetails[])-ROW(Rechnungsdetails[#Headers])), ROW(16:16)), MATCH($C$8, Rechnungsdetails[#Headers], 0)),\"\")","v":""},{"$f":"IFERROR(INDEX(Rechnungsdetails[],SMALL(IF(Rechnungsdetails[Rechnungsnr.]=rngInvoice,ROW(Rechnungsdetails[])-ROW(Rechnungsdetails[#Headers])), ROW(16:16)), MATCH($D$8, Rechnungsdetails[#Headers], 0)),\"\")","v":""},{"$f":"IFERROR(INDEX(Rechnungsdetails[],SMALL(IF(Rechnungsdetails[Rechnungsnr.]=rngInvoice,ROW(Rechnungsdetails[])-ROW(Rechnungsdetails[#Headers])), ROW(16:16)), MATCH($E$8, Rechnungsdetails[#Headers], 0)),\"\")","v":""},{"$f":"IFERROR(INDEX(Rechnungsdetails[],SMALL(IF(Rechnungsdetails[Rechnungsnr.]=rngInvoice,ROW(Rechnungsdetails[])-ROW(Rechnungsdetails[#Headers])), ROW(16:16)), MATCH($F$8, Rechnungsdetails[#Headers], 0)),\"\")","v":""},""]
[null,{"$f":"IFERROR(INDEX(Rechnungsdetails[],SMALL(IF(Rechnungsdetails[Rechnungsnr.]=rngInvoice,ROW(Rechnungsdetails[])-ROW(Rechnungsdetails[#Headers])), ROW(17:17)), MATCH($B$8, Rechnungsdetails[#Headers], 0)),\"\")","v":""},{"$f":"IFERROR(INDEX(Rechnungsdetails[],SMALL(IF(Rechnungsdetails[Rechnungsnr.]=rngInvoice,ROW(Rechnungsdetails[])-ROW(Rechnungsdetails[#Headers])), ROW(17:17)), MATCH($C$8, Rechnungsdetails[#Headers], 0)),\"\")","v":""},{"$f":"IFERROR(INDEX(Rechnungsdetails[],SMALL(IF(Rechnungsdetails[Rechnungsnr.]=rngInvoice,ROW(Rechnungsdetails[])-ROW(Rechnungsdetails[#Headers])), ROW(17:17)), MATCH($D$8, Rechnungsdetails[#Headers], 0)),\"\")","v":""},{"$f":"IFERROR(INDEX(Rechnungsdetails[],SMALL(IF(Rechnungsdetails[Rechnungsnr.]=rngInvoice,ROW(Rechnungsdetails[])-ROW(Rechnungsdetails[#Headers])), ROW(17:17)), MATCH($E$8, Rechnungsdetails[#Headers], 0)),\"\")","v":""},{"$f":"IFERROR(INDEX(Rechnungsdetails[],SMALL(IF(Rechnungsdetails[Rechnungsnr.]=rngInvoice,ROW(Rechnungsdetails[])-ROW(Rechnungsdetails[#Headers])), ROW(17:17)), MATCH($F$8, Rechnungsdetails[#Headers], 0)),\"\")","v":""},""]
[null,{"$f":"IFERROR(INDEX(Rechnungsdetails[],SMALL(IF(Rechnungsdetails[Rechnungsnr.]=rngInvoice,ROW(Rechnungsdetails[])-ROW(Rechnungsdetails[#Headers])), ROW(18:18)), MATCH($B$8, Rechnungsdetails[#Headers], 0)),\"\")","v":""},{"$f":"IFERROR(INDEX(Rechnungsdetails[],SMALL(IF(Rechnungsdetails[Rechnungsnr.]=rngInvoice,ROW(Rechnungsdetails[])-ROW(Rechnungsdetails[#Headers])), ROW(18:18)), MATCH($C$8, Rechnungsdetails[#Headers], 0)),\"\")","v":""},{"$f":"IFERROR(INDEX(Rechnungsdetails[],SMALL(IF(Rechnungsdetails[Rechnungsnr.]=rngInvoice,ROW(Rechnungsdetails[])-ROW(Rechnungsdetails[#Headers])), ROW(18:18)), MATCH($D$8, Rechnungsdetails[#Headers], 0)),\"\")","v":""},{"$f":"IFERROR(INDEX(Rechnungsdetails[],SMALL(IF(Rechnungsdetails[Rechnungsnr.]=rngInvoice,ROW(Rechnungsdetails[])-ROW(Rechnungsdetails[#Headers])), ROW(18:18)), MATCH($E$8, Rechnungsdetails[#Headers], 0)),\"\")","v":""},{"$f":"IFERROR(INDEX(Rechnungsdetails[],SMALL(IF(Rechnungsdetails[Rechnungsnr.]=rngInvoice,ROW(Rechnungsdetails[])-ROW(Rechnungsdetails[#Headers])), ROW(18:18)), MATCH($F$8, Rechnungsdetails[#Headers], 0)),\"\")","v":""},""]
[null,{"$f":"IFERROR(INDEX(Rechnungsdetails[],SMALL(IF(Rechnungsdetails[Rechnungsnr.]=rngInvoice,ROW(Rechnungsdetails[])-ROW(Rechnungsdetails[#Headers])), ROW(19:19)), MATCH($B$8, Rechnungsdetails[#Headers], 0)),\"\")","v":""},{"$f":"IFERROR(INDEX(Rechnungsdetails[],SMALL(IF(Rechnungsdetails[Rechnungsnr.]=rngInvoice,ROW(Rechnungsdetails[])-ROW(Rechnungsdetails[#Headers])), ROW(19:19)), MATCH($C$8, Rechnungsdetails[#Headers], 0)),\"\")","v":""},{"$f":"IFERROR(INDEX(Rechnungsdetails[],SMALL(IF(Rechnungsdetails[Rechnungsnr.]=rngInvoice,ROW(Rechnungsdetails[])-ROW(Rechnungsdetails[#Headers])), ROW(19:19)), MATCH($D$8, Rechnungsdetails[#Headers], 0)),\"\")","v":""},{"$f":"IFERROR(INDEX(Rechnungsdetails[],SMALL(IF(Rechnungsdetails[Rechnungsnr.]=rngInvoice,ROW(Rechnungsdetails[])-ROW(Rechnungsdetails[#Headers])), ROW(19:19)), MATCH($E$8, Rechnungsdetails[#Headers], 0)),\"\")","v":""},{"$f":"IFERROR(INDEX(Rechnungsdetails[],SMALL(IF(Rechnungsdetails[Rechnungsnr.]=rngInvoice,ROW(Rechnungsdetails[])-ROW(Rechnungsdetails[#Headers])), ROW(19:19)), MATCH($F$8, Rechnungsdetails[#Headers], 0)),\"\")","v":""},""]
[null,{"$f":"IFERROR(INDEX(Rechnungsdetails[],SMALL(IF(Rechnungsdetails[Rechnungsnr.]=rngInvoice,ROW(Rechnungsdetails[])-ROW(Rechnungsdetails[#Headers])), ROW(20:20)), MATCH($B$8, Rechnungsdetails[#Headers], 0)),\"\")","v":""},{"$f":"IFERROR(INDEX(Rechnungsdetails[],SMALL(IF(Rechnungsdetails[Rechnungsnr.]=rngInvoice,ROW(Rechnungsdetails[])-ROW(Rechnungsdetails[#Headers])), ROW(20:20)), MATCH($C$8, Rechnungsdetails[#Headers], 0)),\"\")","v":""},{"$f":"IFERROR(INDEX(Rechnungsdetails[],SMALL(IF(Rechnungsdetails[Rechnungsnr.]=rngInvoice,ROW(Rechnungsdetails[])-ROW(Rechnungsdetails[#Headers])), ROW(20:20)), MATCH($D$8, Rechnungsdetails[#Headers], 0)),\"\")","v":""},{"$f":"IFERROR(INDEX(Rechnungsdetails[],SMALL(IF(Rechnungsdetails[Rechnungsnr.]=rngInvoice,ROW(Rechnungsdetails[])-ROW(Rechnungsdetails[#Headers])), ROW(20:20)), MATCH($E$8, Rechnungsdetails[#Headers], 0)),\"\")","v":""},{"$f":"IFERROR(INDEX(Rechnungsdetails[],SMALL(IF(Rechnungsdetails[Rechnungsnr.]=rngInvoice,ROW(Rechnungsdetails[])-ROW(Rechnungsdetails[#Headers])), ROW(20:20)), MATCH($F$8, Rechnungsdetails[#Headers], 0)),\"\")","v":""},""]
[null,{"$f":"IFERROR(INDEX(Rechnungsdetails[],SMALL(IF(Rechnungsdetails[Rechnungsnr.]=rngInvoice,ROW(Rechnungsdetails[])-ROW(Rechnungsdetails[#Headers])), ROW(21:21)), MATCH($B$8, Rechnungsdetails[#Headers], 0)),\"\")","v":""},{"$f":"IFERROR(INDEX(Rechnungsdetails[],SMALL(IF(Rechnungsdetails[Rechnungsnr.]=rngInvoice,ROW(Rechnungsdetails[])-ROW(Rechnungsdetails[#Headers])), ROW(21:21)), MATCH($C$8, Rechnungsdetails[#Headers], 0)),\"\")","v":""},{"$f":"IFERROR(INDEX(Rechnungsdetails[],SMALL(IF(Rechnungsdetails[Rechnungsnr.]=rngInvoice,ROW(Rechnungsdetails[])-ROW(Rechnungsdetails[#Headers])), ROW(21:21)), MATCH($D$8, Rechnungsdetails[#Headers], 0)),\"\")","v":""},{"$f":"IFERROR(INDEX(Rechnungsdetails[],SMALL(IF(Rechnungsdetails[Rechnungsnr.]=rngInvoice,ROW(Rechnungsdetails[])-ROW(Rechnungsdetails[#Headers])), ROW(21:21)), MATCH($E$8, Rechnungsdetails[#Headers], 0)),\"\")","v":""},{"$f":"IFERROR(INDEX(Rechnungsdetails[],SMALL(IF(Rechnungsdetails[Rechnungsnr.]=rngInvoice,ROW(Rechnungsdetails[])-ROW(Rechnungsdetails[#Headers])), ROW(21:21)), MATCH($F$8, Rechnungsdetails[#Headers], 0)),\"\")","v":""},""]
[null,{"$f":"IFERROR(INDEX(Rechnungsdetails[],SMALL(IF(Rechnungsdetails[Rechnungsnr.]=rngInvoice,ROW(Rechnungsdetails[])-ROW(Rechnungsdetails[#Headers])), ROW(22:22)), MATCH($B$8, Rechnungsdetails[#Headers], 0)),\"\")","v":""},{"$f":"IFERROR(INDEX(Rechnungsdetails[],SMALL(IF(Rechnungsdetails[Rechnungsnr.]=rngInvoice,ROW(Rechnungsdetails[])-ROW(Rechnungsdetails[#Headers])), ROW(22:22)), MATCH($C$8, Rechnungsdetails[#Headers], 0)),\"\")","v":""},{"$f":"IFERROR(INDEX(Rechnungsdetails[],SMALL(IF(Rechnungsdetails[Rechnungsnr.]=rngInvoice,ROW(Rechnungsdetails[])-ROW(Rechnungsdetails[#Headers])), ROW(22:22)), MATCH($D$8, Rechnungsdetails[#Headers], 0)),\"\")","v":""},{"$f":"IFERROR(INDEX(Rechnungsdetails[],SMALL(IF(Rechnungsdetails[Rechnungsnr.]=rngInvoice,ROW(Rechnungsdetails[])-ROW(Rechnungsdetails[#Headers])), ROW(22:22)), MATCH($E$8, Rechnungsdetails[#Headers], 0)),\"\")","v":""},{"$f":"IFERROR(INDEX(Rechnungsdetails[],SMALL(IF(Rechnungsdetails[Rechnungsnr.]=rngInvoice,ROW(Rechnungsdetails[])-ROW(Rechnungsdetails[#Headers])), ROW(22:22)), MATCH($F$8, Rechnungsdetails[#Headers], 0)),\"\")","v":""},""]
[null,{"$f":"IFERROR(INDEX(Rechnungsdetails[],SMALL(IF(Rechnungsdetails[Rechnungsnr.]=rngInvoice,ROW(Rechnungsdetails[])-ROW(Rechnungsdetails[#Headers])), ROW(23:23)), MATCH($B$8, Rechnungsdetails[#Headers], 0)),\"\")","v":""},{"$f":"IFERROR(INDEX(Rechnungsdetails[],SMALL(IF(Rechnungsdetails[Rechnungsnr.]=rngInvoice,ROW(Rechnungsdetails[])-ROW(Rechnungsdetails[#Headers])), ROW(23:23)), MATCH($C$8, Rechnungsdetails[#Headers], 0)),\"\")","v":""},{"$f":"IFERROR(INDEX(Rechnungsdetails[],SMALL(IF(Rechnungsdetails[Rechnungsnr.]=rngInvoice,ROW(Rechnungsdetails[])-ROW(Rechnungsdetails[#Headers])), ROW(23:23)), MATCH($D$8, Rechnungsdetails[#Headers], 0)),\"\")","v":""},{"$f":"IFERROR(INDEX(Rechnungsdetails[],SMALL(IF(Rechnungsdetails[Rechnungsnr.]=rngInvoice,ROW(Rechnungsdetails[])-ROW(Rechnungsdetails[#Headers])), ROW(23:23)), MATCH($E$8, Rechnungsdetails[#Headers], 0)),\"\")","v":""},{"$f":"IFERROR(INDEX(Rechnungsdetails[],SMALL(IF(Rechnungsdetails[Rechnungsnr.]=rngInvoice,ROW(Rechnungsdetails[])-ROW(Rechnungsdetails[#Headers])), ROW(23:23)), MATCH($F$8, Rechnungsdetails[#Headers], 0)),\"\")","v":""},""]
[null,{"$f":"IFERROR(INDEX(Rechnungsdetails[],SMALL(IF(Rechnungsdetails[Rechnungsnr.]=rngInvoice,ROW(Rechnungsdetails[])-ROW(Rechnungsdetails[#Headers])), ROW(24:24)), MATCH($B$8, Rechnungsdetails[#Headers], 0)),\"\")","v":""},{"$f":"IFERROR(INDEX(Rechnungsdetails[],SMALL(IF(Rechnungsdetails[Rechnungsnr.]=rngInvoice,ROW(Rechnungsdetails[])-ROW(Rechnungsdetails[#Headers])), ROW(24:24)), MATCH($C$8, Rechnungsdetails[#Headers], 0)),\"\")","v":""},{"$f":"IFERROR(INDEX(Rechnungsdetails[],SMALL(IF(Rechnungsdetails[Rechnungsnr.]=rngInvoice,ROW(Rechnungsdetails[])-ROW(Rechnungsdetails[#Headers])), ROW(24:24)), MATCH($D$8, Rechnungsdetails[#Headers], 0)),\"\")","v":""},{"$f":"IFERROR(INDEX(Rechnungsdetails[],SMALL(IF(Rechnungsdetails[Rechnungsnr.]=rngInvoice,ROW(Rechnungsdetails[])-ROW(Rechnungsdetails[#Headers])), ROW(24:24)), MATCH($E$8, Rechnungsdetails[#Headers], 0)),\"\")","v":""},{"$f":"IFERROR(INDEX(Rechnungsdetails[],SMALL(IF(Rechnungsdetails[Rechnungsnr.]=rngInvoice,ROW(Rechnungsdetails[])-ROW(Rechnungsdetails[#Headers])), ROW(24:24)), MATCH($F$8, Rechnungsdetails[#Headers], 0)),\"\")","v":""},""]
[null,{"$f":"IFERROR(INDEX(Rechnungsdetails[],SMALL(IF(Rechnungsdetails[Rechnungsnr.]=rngInvoice,ROW(Rechnungsdetails[])-ROW(Rechnungsdetails[#Headers])), ROW(25:25)), MATCH($B$8, Rechnungsdetails[#Headers], 0)),\"\")","v":""},{"$f":"IFERROR(INDEX(Rechnungsdetails[],SMALL(IF(Rechnungsdetails[Rechnungsnr.]=rngInvoice,ROW(Rechnungsdetails[])-ROW(Rechnungsdetails[#Headers])), ROW(25:25)), MATCH($C$8, Rechnungsdetails[#Headers], 0)),\"\")","v":""},{"$f":"IFERROR(INDEX(Rechnungsdetails[],SMALL(IF(Rechnungsdetails[Rechnungsnr.]=rngInvoice,ROW(Rechnungsdetails[])-ROW(Rechnungsdetails[#Headers])), ROW(25:25)), MATCH($D$8, Rechnungsdetails[#Headers], 0)),\"\")","v":""},{"$f":"IFERROR(INDEX(Rechnungsdetails[],SMALL(IF(Rechnungsdetails[Rechnungsnr.]=rngInvoice,ROW(Rechnungsdetails[])-ROW(Rechnungsdetails[#Headers])), ROW(25:25)), MATCH($E$8, Rechnungsdetails[#Headers], 0)),\"\")","v":""},{"$f":"IFERROR(INDEX(Rechnungsdetails[],SMALL(IF(Rechnungsdetails[Rechnungsnr.]=rngInvoice,ROW(Rechnungsdetails[])-ROW(Rechnungsdetails[#Headers])), ROW(25:25)), MATCH($F$8, Rechnungsdetails[#Headers], 0)),\"\")","v":""},""]
[{"$nulls":5},"Rechnungszwischensumme",{"$f":"SUM(ProjectInvoice[Preis])","v":{"v":2014,"d":"2,014.00 €"}}]
[{"$nulls":5},"Steuersatz",{"$f":"VLOOKUP(rngInvoice,InvoicesMain[],5)","v":{"v":0.0875,"d":"8.75%"}}]
[{"$nulls":5},"Mehrwertsteuer",{"$f":"G34*G35","v":{"v":176.225,"d":"176.23 €"}}]
[{"$nulls":5},"Sonstiges",{"$f":"VLOOKUP(rngInvoice,InvoicesMain[],6)","v":0}]
[null,{"$f":"\"Alle Schecks auszahlbar an \"&Unternehmensname&\".\"","v":"Alle Schecks auszahlbar an Firmenname."},{"$nulls":3},"Erhaltene Anzahlung",{"$f":"VLOOKUP(rngInvoice,InvoicesMain[],7)","v":0}]
[null,"Gesamtbetrag fällig in <#> Tagen. Überfällige Zahlungen werden mit Verzugszinsen von <#> % pro Monat berechnet.",{"$nulls":3},"SUMME",{"$f":"(G34+G36+G37)-G38","v":{"v":2190.225,"d":"2,190.23 €"}}]

{"sheet":"Kunden","index":1,"n_rows":6,"n_cols":12,"rows_kept":6}
[]
[null,null,"Kunden"]
[null,"Lookup","Unternehmensnr.","Unternehmensname","Name der Kontaktperson","Adresse","Stadt","Bundesland","PLZ","Telefon","E-Mail-Adresse","Fax"]
[null,{"$f":"C4& \" - \"&D4","v":"1 - Tailspin Toys "},1,"Tailspin Toys ","Robert Lyon","Kirschenstr. 34","Alpburg","BY","123456","(0432) 5 55 01 78","jemand@example.com","(0432) 5 55 01 87"]
[null,"2 - Contoso, Ltd",2,"Contoso, Ltd","Sanjay Patel","Walnussallee 167","Mollenberg","BW","098765","(0432) 5 55 01 89","jemand@example.com","(0432) 5 55 01 23"]
[null,"Summen",{"$f":"\"Kunden gesamt: \"&SUBTOTAL(103,Kundenliste[Unternehmensnr.])","v":"Kunden gesamt: 2"}]

{"sheet":"Rechnungen – Hauptblatt","index":2,"n_rows":6,"n_cols":11,"rows_kept":6}
[]
[null,"Rechnungen"]
[null,"Rechnungsnr.","Unternehmen","Rechnungsdatum","Projektbeschreibung","Steuersatz","Sonstiges","Einzahlung","Einzelsumme","Rechnungssumme","Notizen"]
[null,"3-456-1","1 - Tailspin Toys ",{"$f":"TODAY()","v":{"v":43675,"d":"4367500.00%"}},"Projekt 1",{"v":0.0875,"d":"8.75%"},{"v":100,"d":"100.00 €"},{"v":100,"d":"100.00 €"},{"$f":"SUMIF(Rechnungsdetails[Rechnungsnr.],\"=\"&InvoicesMain[[#This Row],[Rechnungsnr.]],Rechnungsdetails[Summe])","v":{"v":5200,"d":"5,200.00 €"}},{"$f":"(InvoicesMain[[#This Row],[Einzelsumme]]*(1+InvoicesMain[[#This Row],[Steuersatz]]))+InvoicesMain[[#This Row],[Sonstiges]]-InvoicesMain[[#This Row],[Einzahlung]]","v":{"v":5654.999999999999,"d":"5,655.00 €"}}]
[null,"3-456-2","2 - Contoso, Ltd",{"$f":"TODAY()+10","v":{"v":43685,"d":"4368500.00%"}},"Projekt 2",{"v":0.0875,"d":"8.75%"},null,null,{"$f":"SUMIF(Rechnungsdetails[Rechnungsnr.],\"=\"&InvoicesMain[[#This Row],[Rechnungsnr.]],Rechnungsdetails[Summe])","v":{"v":2014,"d":"2,014.00 €"}},{"$f":"(InvoicesMain[[#This Row],[Einzelsumme]]*(1+InvoicesMain[[#This Row],[Steuersatz]]))+InvoicesMain[[#This Row],[Sonstiges]]-InvoicesMain[[#This Row],[Einzahlung]]","v":{"v":2190.225,"d":"2,190.23 €"}}]
[null,"Summen",{"$f":"\"Summe Rechnungen: \"&SUBTOTAL(103,InvoicesMain[Rechnungsnr.])","v":"Summe Rechnungen: 2"},{"$nulls":3},{"$f":"SUBTOTAL(109,InvoicesMain[Sonstiges])","v":{"v":100,"d":"100.00 €"}},{"$f":"SUBTOTAL(109,InvoicesMain[Einzahlung])","v":{"v":100,"d":"100.00 €"}},{"$f":"SUBTOTAL(109,InvoicesMain[Einzelsumme])","v":{"v":7214,"d":"7,214.00 €"}},{"$f":"SUBTOTAL(109,InvoicesMain[Rechnungssumme])","v":{"v":7845.2249999999985,"d":"7,845.23 €"}}]

{"sheet":"Rechnungsdetails","index":3,"n_rows":40,"n_cols":8,"rows_kept":40}
[]
[null,"Rechnungsdetails"]
[null,"Beschreibung","Rechnungsnr.","Artikelnr.","Menge","Preis je Einheit","Rabatt","Summe"]
[null,"Rechnung 3-456-1 Daten 1","3-456-1",1,1,{"v":1,"d":"1.00 €"},{"v":1,"d":"1.00 €"},{"$f":"(Rechnungsdetails[[#This Row],[Menge]]*Rechnungsdetails[[#This Row],[Preis je Einheit]])-Rechnungsdetails[[#This Row],[Rabatt]]","v":{"v":0,"d":"0.00 €"}}]
[null,"Rechnung 3-456-1 Daten 2","3-456-1",2,2,{"v":2,"d":"2.00 €"},{"v":2,"d":"2.00 €"},{"$f":"(Rechnungsdetails[[#This Row],[Menge]]*Rechnungsdetails[[#This Row],[Preis je Einheit]])-Rechnungsdetails[[#This Row],[Rabatt]]","v":{"v":2,"d":"2.00 €"}}]
[null,"Rechnung 3-456-1 Daten 3","3-456-1",3,3,{"v":3,"d":"3.00 €"},{"v":3,"d":"3.00 €"},{"$f":"(Rechnungsdetails[[#This Row],[Menge]]*Rechnungsdetails[[#This Row],[Preis je Einheit]])-Rechnungsdetails[[#This Row],[Rabatt]]","v":{"v":6,"d":"6.00 €"}}]
[null,"Rechnung 3-456-1 Daten 4","3-456-1",4,4,{"v":4,"d":"4.00 €"},{"v":4,"d":"4.00 €"},{"$f":"(Rechnungsdetails[[#This Row],[Menge]]*Rechnungsdetails[[#This Row],[Preis je Einheit]])-Rechnungsdetails[[#This Row],[Rabatt]]","v":{"v":12,"d":"12.00 €"}}]
[null,"Rechnung 3-456-1 Daten 5","3-456-1",5,5,{"v":5,"d":"5.00 €"},{"v":5,"d":"5.00 €"},{"$f":"(Rechnungsdetails[[#This Row],[Menge]]*Rechnungsdetails[[#This Row],[Preis je Einheit]])-Rechnungsdetails[[#This Row],[Rabatt]]","v":{"v":20,"d":"20.00 €"}}]
[null,"Rechnung 3-456-1 Daten 6","3-456-1",6,6,{"v":6,"d":"6.00 €"},{"v":6,"d":"6.00 €"},{"$f":"(Rechnungsdetails[[#This Row],[Menge]]*Rechnungsdetails[[#This Row],[Preis je Einheit]])-Rechnungsdetails[[#This Row],[Rabatt]]","v":{"v":30,"d":"30.00 €"}}]
[null,"Rechnung 3-456-1 Daten 7","3-456-1",7,7,{"v":7,"d":"7.00 €"},{"v":7,"d":"7.00 €"},{"$f":"(Rechnungsdetails[[#This Row],[Menge]]*Rechnungsdetails[[#This Row],[Preis je Einheit]])-Rechnungsdetails[[#This Row],[Rabatt]]","v":{"v":42,"d":"42.00 €"}}]
[null,"Rechnung 3-456-1 Daten 8","3-456-1",8,8,{"v":8,"d":"8.00 €"},{"v":8,"d":"8.00 €"},{"$f":"(Rechnungsdetails[[#This Row],[Menge]]*Rechnungsdetails[[#This Row],[Preis je Einheit]])-Rechnungsdetails[[#This Row],[Rabatt]]","v":{"v":56,"d":"56.00 €"}}]
[null,"Rechnung 3-456-1 Daten 9","3-456-1",9,9,{"v":9,"d":"9.00 €"},{"v":9,"d":"9.00 €"},{"$f":"(Rechnungsdetails[[#This Row],[Menge]]*Rechnungsdetails[[#This Row],[Preis je Einheit]])-Rechnungsdetails[[#This Row],[Rabatt]]","v":{"v":72,"d":"72.00 €"}}]
[null,"Rechnung 3-456-1 Daten 10","3-456-1",10,10,{"v":10,"d":"10.00 €"},{"v":10,"d":"10.00 €"},{"$f":"(Rechnungsdetails[[#This Row],[Menge]]*Rechnungsdetails[[#This Row],[Preis je Einheit]])-Rechnungsdetails[[#This Row],[Rabatt]]","v":{"v":90,"d":"90.00 €"}}]
[null,"Rechnung 3-456-1 Daten 11","3-456-1",11,11,{"v":11,"d":"11.00 €"},{"v":11,"d":"11.00 €"},{"$f":"(Rechnungsdetails[[#This Row],[Menge]]*Rechnungsdetails[[#This Row],[Preis je Einheit]])-Rechnungsdetails[[#This Row],[Rabatt]]","v":{"v":110,"d":"110.00 €"}}]
[null,"Rechnung 3-456-1 Daten 12","3-456-1",12,12,{"v":12,"d":"12.00 €"},{"v":12,"d":"12.00 €"},{"$f":"(Rechnungsdetails[[#This Row],[Menge]]*Rechnungsdetails[[#This Row],[Preis je Einheit]])-Rechnungsdetails[[#This Row],[Rabatt]]","v":{"v":132,"d":"132.00 €"}}]
[null,"Rechnung 3-456-1 Daten 13","3-456-1",13,13,{"v":13,"d":"13.00 €"},{"v":13,"d":"13.00 €"},{"$f":"(Rechnungsdetails[[#This Row],[Menge]]*Rechnungsdetails[[#This Row],[Preis je Einheit]])-Rechnungsdetails[[#This Row],[Rabatt]]","v":{"v":156,"d":"156.00 €"}}]
[null,"Rechnung 3-456-1 Daten 14","3-456-1",14,14,{"v":14,"d":"14.00 €"},{"v":14,"d":"14.00 €"},{"$f":"(Rechnungsdetails[[#This Row],[Menge]]*Rechnungsdetails[[#This Row],[Preis je Einheit]])-Rechnungsdetails[[#This Row],[Rabatt]]","v":{"v":182,"d":"182.00 €"}}]
[null,"Rechnung 3-456-1 Daten 15","3-456-1",15,15,{"v":15,"d":"15.00 €"},{"v":15,"d":"15.00 €"},{"$f":"(Rechnungsdetails[[#This Row],[Menge]]*Rechnungsdetails[[#This Row],[Preis je Einheit]])-Rechnungsdetails[[#This Row],[Rabatt]]","v":{"v":210,"d":"210.00 €"}}]
[null,"Rechnung 3-456-1 Daten 16","3-456-1",16,16,{"v":16,"d":"16.00 €"},{"v":16,"d":"16.00 €"},{"$f":"(Rechnungsdetails[[#This Row],[Menge]]*Rechnungsdetails[[#This Row],[Preis je Einheit]])-Rechnungsdetails[[#This Row],[Rabatt]]","v":{"v":240,"d":"240.00 €"}}]
[null,"Rechnung 3-456-1 Daten 17","3-456-1",17,17,{"v":17,"d":"17.00 €"},{"v":17,"d":"17.00 €"},{"$f":"(Rechnungsdetails[[#This Row],[Menge]]*Rechnungsdetails[[#This Row],[Preis je Einheit]])-Rechnungsdetails[[#This Row],[Rabatt]]","v":{"v":272,"d":"272.00 €"}}]
[null,"Rechnung 3-456-1 Daten 18","3-456-1",18,18,{"v":18,"d":"18.00 €"},{"v":18,"d":"18.00 €"},{"$f":"(Rechnungsdetails[[#This Row],[Menge]]*Rechnungsdetails[[#This Row],[Preis je Einheit]])-Rechnungsdetails[[#This Row],[Rabatt]]","v":{"v":306,"d":"306.00 €"}}]
[null,"Rechnung 3-456-1 Daten 19","3-456-1",19,19,{"v":19,"d":"19.00 €"},{"v":19,"d":"19.00 €"},{"$f":"(Rechnungsdetails[[#This Row],[Menge]]*Rechnungsdetails[[#This Row],[Preis je Einheit]])-Rechnungsdetails[[#This Row],[Rabatt]]","v":{"v":342,"d":"342.00 €"}}]
[null,"Rechnung 3-456-1 Daten 20","3-456-1",20,20,{"v":20,"d":"20.00 €"},{"v":20,"d":"20.00 €"},{"$f":"(Rechnungsdetails[[#This Row],[Menge]]*Rechnungsdetails[[#This Row],[Preis je Einheit]])-Rechnungsdetails[[#This Row],[Rabatt]]","v":{"v":380,"d":"380.00 €"}}]
[null,"Rechnung 3-456-1 Daten 21","3-456-1",21,21,{"v":21,"d":"21.00 €"},{"v":21,"d":"21.00 €"},{"$f":"(Rechnungsdetails[[#This Row],[Menge]]*Rechnungsdetails[[#This Row],[Preis je Einheit]])-Rechnungsdetails[[#This Row],[Rabatt]]","v":{"v":420,"d":"420.00 €"}}]
[null,"Rechnung 3-456-1 Daten 22","3-456-1",22,22,{"v":22,"d":"22.00 €"},{"v":22,"d":"22.00 €"},{"$f":"(Rechnungsdetails[[#This Row],[Menge]]*Rechnungsdetails[[#This Row],[Preis je Einheit]])-Rechnungsdetails[[#This Row],[Rabatt]]","v":{"v":462,"d":"462.00 €"}}]
[null,"Rechnung 3-456-1 Daten 23","3-456-1",23,23,{"v":23,"d":"23.00 €"},{"v":23,"d":"23.00 €"},{"$f":"(Rechnungsdetails[[#This Row],[Menge]]*Rechnungsdetails[[#This Row],[Preis je Einheit]])-Rechnungsdetails[[#This Row],[Rabatt]]","v":{"v":506,"d":"506.00 €"}}]
[null,"Rechnung 3-456-1 Daten 24","3-456-1",24,24,{"v":24,"d":"24.00 €"},{"v":24,"d":"24.00 €"},{"$f":"(Rechnungsdetails[[#This Row],[Menge]]*Rechnungsdetails[[#This Row],[Preis je Einheit]])-Rechnungsdetails[[#This Row],[Rabatt]]","v":{"v":552,"d":"552.00 €"}}]
[null,"Rechnung 3-456-1 Daten 25","3-456-1",25,25,{"v":25,"d":"25.00 €"},{"v":25,"d":"25.00 €"},{"$f":"(Rechnungsdetails[[#This Row],[Menge]]*Rechnungsdetails[[#This Row],[Preis je Einheit]])-Rechnungsdetails[[#This Row],[Rabatt]]","v":{"v":600,"d":"600.00 €"}}]
[null,"Rechnung 3-456-2 Daten 1","3-456-2","Z4567",39,{"v":5,"d":"5.00 €"},null,{"$f":"(Rechnungsdetails[[#This Row],[Menge]]*Rechnungsdetails[[#This Row],[Preis je Einheit]])-Rechnungsdetails[[#This Row],[Rabatt]]","v":{"v":195,"d":"195.00 €"}}]
[null,"Rechnung 3-456-2 Daten 2","3-456-2","Z4568",40,{"v":4,"d":"4.00 €"},{"v":5,"d":"5.00 €"},{"$f":"(Rechnungsdetails[[#This Row],[Menge]]*Rechnungsdetails[[#This Row],[Preis je Einheit]])-Rechnungsdetails[[#This Row],[Rabatt]]","v":{"v":155,"d":"155.00 €"}}]
[null,"Rechnung 3-456-2 Daten 3","3-456-2","Z4569",30,{"v":6,"d":"6.00 €"},{"v":7,"d":"7.00 €"},{"$f":"(Rechnungsdetails[[#This Row],[Menge]]*Rechnungsdetails[[#This Row],[Preis je Einheit]])-Rechnungsdetails[[#This Row],[Rabatt]]","v":{"v":173,"d":"173.00 €"}}]
[null,"Rechnung 3-456-2 Daten 4","3-456-2","Z4570",40,{"v":7,"d":"7.00 €"},null,{"$f":"(Rechnungsdetails[[#This Row],[Menge]]*Rechnungsdetails[[#This Row],[Preis je Einheit]])-Rechnungsdetails[[#This Row],[Rabatt]]","v":{"v":280,"d":"280.00 €"}}]
[null,"Rechnung 3-456-2 Daten 5","3-456-2","Z4571",10,{"v":4,"d":"4.00 €"},null,{"$f":"(Rechnungsdetails[[#This Row],[Menge]]*Rechnungsdetails[[#This Row],[Preis je Einheit]])-Rechnungsdetails[[#This Row],[Rabatt]]","v":{"v":40,"d":"40.00 €"}}]
[null,"Rechnung 3-456-2 Daten 6","3-456-2","Z4572",5,{"v":8,"d":"8.00 €"},null,{"$f":"(Rechnungsdetails[[#This Row],[Menge]]*Rechnungsdetails[[#This Row],[Preis je Einheit]])-Rechnungsdetails[[#This Row],[Rabatt]]","v":{"v":40,"d":"40.00 €"}}]
[null,"Rechnung 3-456-2 Daten 7","3-456-2","Z4573",70,{"v":6,"d":"6.00 €"},null,{"$f":"(Rechnungsdetails[[#This Row],[Menge]]*Rechnungsdetails[[#This Row],[Preis je Einheit]])-Rechnungsdetails[[#This Row],[Rabatt]]","v":{"v":420,"d":"420.00 €"}}]
[null,"Rechnung 3-456-2 Daten 8","3-456-2","Z4574",25,{"v":4,"d":"4.00 €"},null,{"$f":"(Rechnungsdetails[[#This Row],[Menge]]*Rechnungsdetails[[#This Row],[Preis je Einheit]])-Rechnungsdetails[[#This Row],[Rabatt]]","v":{"v":100,"d":"100.00 €"}}]
[null,"Rechnung 3-456-2 Daten 9","3-456-2","Z4575",5,{"v":7,"d":"7.00 €"},{"v":3,"d":"3.00 €"},{"$f":"(Rechnungsdetails[[#This Row],[Menge]]*Rechnungsdetails[[#This Row],[Preis je Einheit]])-Rechnungsdetails[[#This Row],[Rabatt]]","v":{"v":32,"d":"32.00 €"}}]
[null,"Rechnung 3-456-2 Daten 10","3-456-2","Z4576",80,{"v":1,"d":"1.00 €"},null,{"$f":"(Rechnungsdetails[[#This Row],[Menge]]*Rechnungsdetails[[#This Row],[Preis je Einheit]])-Rechnungsdetails[[#This Row],[Rabatt]]","v":{"v":80,"d":"80.00 €"}}]
[null,"Rechnung 3-456-2 Daten 11","3-456-2","Z4577",65,{"v":7,"d":"7.00 €"},null,{"$f":"(Rechnungsdetails[[#This Row],[Menge]]*Rechnungsdetails[[#This Row],[Preis je Einheit]])-Rechnungsdetails[[#This Row],[Rabatt]]","v":{"v":455,"d":"455.00 €"}}]
[null,"Rechnung 3-456-2 Daten 12","3-456-2","Z4578",44,{"v":1,"d":"1.00 €"},null,{"$f":"(Rechnungsdetails[[#This Row],[Menge]]*Rechnungsdetails[[#This Row],[Preis je Einheit]])-Rechnungsdetails[[#This Row],[Rabatt]]","v":{"v":44,"d":"44.00 €"}}]

{"sheet":"Info zu diesem Rechnungstracker","index":4,"n_rows":40,"n_cols":3,"rows_kept":40,"merged":[[3,1,3,7],[4,1,4,7],[5,1,5,7],[6,1,6,7],[7,2,7,7],[8,2,8,7],[9,2,9,7],[10,2,10,7],[11,2,11,7],[12,1,12,7],[13,2,13,3],[14,2,14,7],[15,1,15,7],[16,2,16,7],[17,2,17,7],[18,2,18,7],[19,2,19,7],[20,2,20,7],[21,2,21,7],[22,1,22,7],[23,1,23,7],[24,2,24,7],[25,2,25,7],[26,2,26,7],[27,2,27,7],[28,1,28,7],[29,1,29,7],[30,2,30,7],[31,2,31,7],[32,2,32,7],[33,2,33,7],[34,2,34,7],[36,2,36,7],[37,2,37,7],[38,2,38,7],[39,2,39,7]]}
[null,"Informationen zu diesem Rechnungstracker"]
[]
[]
[null,"Der Rechnungstracker wurde dazu entwickelt, eine Kunden-, Rechnungs- und Rechnungsdetailhistorie zu führen, sodass Sie mehrere Rechnungen speichern können, ohne mehrere Dateien erstellen zu müssen. Sie können den Rechnungstracker auch zum Analysieren Ihrer zuvor fakturierten Daten verwenden. Sie können z. B. alle Rechnungen für einen Kunden, ein bestimmtes Projekt oder alle Rechnungen des letzten Monats, des letzten Jahres und andere anzeigen."]
[null,"Bevor Sie beginnen, sehen Sie sich die bereitgestellten Beispieldaten an. Wählen Sie auf dem Blatt „Rechnung“ die Zelle rechts neben Rechnungsnr. (Zelle L8) aus, und es wird eine Dropdownliste angezeigt. Wählen Sie den Dropdownpfeil und dann eine Musterrechnung aus. Achten Sie darauf, wie sich alle Rechnungsdaten automatisch ändern, um die ausgewählte Rechnung darzustellen. Sehen Sie sich nun die Blätter „Kunden“, „Rechnungen – Hauptblatt“ und „Rechnungsdetails“ an. Jedes dieser Blätter enthält Daten zur Rechnung, und alle von Ihnen vorgenommenen Änderungen werden automatisch aktualisiert. "]
[null,"Wie mache ich die ersten Schritte?"]
[null,"Ändern Sie das Blatt „Rechnung“ so, dass es anhand der folgenden Schritte Ihre Unternehmensdaten widerspiegelt:"]
[null,"1.","Navigieren Sie zum Blatt Rechnung, und wählen Sie auf der Registerkarte Überprüfen in der Gruppe Schützen Blattschutz aufheben aus. "]
[null,null,"Hinweis: Das Blatt „Rechnung“ ist geschützt, um unbeabsichtigte Änderungen zu vermeiden, da, wie bereits erwähnt, der Großteil der Daten auf diesem Blatt aus allen anderen Blättern der Arbeitsmappe abgerufen wird. "]
[null,"2.","Passen Sie den Rechnungskopf an, indem Sie den Namen Ihres Unternehmens, die Straße, die PLZ, den Ort, die E-Mail-Adresse, die Website usw. eingeben. Ändern Sie am unteren Rand der Rechnung (Zeile 43) die Zahlungsanweisungen. "]
[null,null,"Wichtig! Ändern Sie nicht die Abrechnungs- oder Rechnungsdaten. Alle diese Zellen enthalten Formeln, die automatisch die Rechnung aktualisieren, wie im Abschnitt Informationen zum Rechnungstracker angegeben.  "]
[null,"3.","(Optional) Ändern der Farben in der gesamten Arbeitsmappe: Klicken Sie auf der Registerkarte Seitenlayout in der Gruppe Designs auf Farben, und wählen Sie im Farbkatalog einen anderen Design-Farbsatz aus. "]
[null,"Tipp: Erstellen Sie ein benutzerdefiniertes Farbdesign, das zum Branding Ihres Unternehmens passt. Klicken Sie dazu auf der Registerkarte Seitenlayout in der Gruppe Designs auf Farben, und wählen Sie dann Farben anpassen aus. Weitere Informationen zum Erstellen eines benutzerdefinierten Farbsatzes finden Sie im folgenden Hilfethema: "]
[null,null,"Passen Sie das Design des Dokuments an."]
[null,"4.","Nachdem Sie die gewünschten Änderungen vorgenommen haben, kehren Sie zum Blatt „Rechnung“ zurück, wählen Sie auf der Registerkarte „Überprüfen“ in der Gruppe „Änderungen“ „Blatt schützen“ aus, und klicken Sie dann auf „OK“. Wenn das Blatt „Rechnung“ geschützt ist, können Sie als einzige Zelle die Zelle mit der Dropdownliste „Rechnungsnr.“ auswählen."]
[null,"Wie erstelle ich eine Rechnung?"]
[null,"1.","Geben Sie auf dem Blatt „Kunden“ Kundendaten wie Name und Adresse des Unternehmens ein. Beachten Sie, dass die Unternehmensnr. ein wichtiger Eintrag ist, da sie einen eindeutigen Bezeichner für jedes Unternehmen bereitstellt, der im gesamten Rechnungstracker verwendet wird. Beachten Sie auch, dass Sie ein Unternehmen nur einmal hinzufügen müssen. Bei nachfolgenden Rechnungen für dasselbe Unternehmen kann dieser Schritt übersprungen werden. "]
[null,null,"Hinweis: Wenn Sie dieselbe Nummer mehreren Unternehmen zuweisen oder den gleichen Unternehmensnamen mehrmals eingeben, färben sich die Einträge rot, um Sie auf die Duplizierung hinzuweisen. "]
[null,"2.","Geben Sie auf dem Blatt „Rechnungen – Hauptblatt“ die primären Daten für Ihre Rechnung ein, wie Rechnungsnr., Rechnungsdatum und Projektbeschreibung. Beachten Sie, dass die Rechnungsnr. wie die Unternehmensnr. ein wichtiger Eintrag ist, da sie einen eindeutigen Bezeichner für jede Rechnung bereitstellt und im gesamten Rechnungstracker verwendet wird. Ein weiterer wichtiger Eintrag ist das Unternehmen. Wenn Sie ein Unternehmen aus der Dropdownliste auswählen, wird Ihre Rechnung diesem Unternehmen zugeordnet. Wenn Sie dann eine Rechnungsnr. auf dem Blatt „Rechnung“ auswählen, werden die Daten des Unternehmens, z. B. Name und Adresse, automatisch auf der Rechnung ausgefüllt."]
[null,null,"Hinweis: Wenn Sie dieselbe Nummer mehreren Rechnungen zuweisen, färben sich die Einträge rot, um Sie auf die Duplizierung hinzuweisen. "]
[null,"3.","Geben Sie auf dem Blatt „Rechnungsdetails“ die Details für Ihre Rechnung ein, z. B. eine Artikelbeschreibung, die Artikelnr., die Menge und den Preis je Einheit. Die Dropdownliste „Rechnungsnr.“ enthält zur Vereinfachung der Dateneingabe eine Liste der Rechnungen, die Sie auf dem Blatt „Rechnungen – Hauptblatt“ eingegeben haben. Ähnlich wie bei der Unternehmensnr. im vorherigen Schritt verknüpft die Rechnungsnr. dieses Detailelement mit einer bestimmten Rechnung. Wenn Sie in der Dropdownliste „Rechnungsnr.“ auf dem Blatt „Rechnung“ eine Rechnungsnr. auswählen, werden die zugehörigen Detailelemente für diese Rechnung angezeigt."]
[null,null,"Hinweis: Die Detailelemente sind auf 25 pro Rechnung beschränkt. Wenn mehr als 25 Elemente hinzugefügt werden, färben sich alle zugehörigen Einträge rot, um Sie auf diese Begrenzung hinzuweisen. Wenn Sie mehr als 25 Rechnungselemente haben, müssen Sie eine zweite Rechnung erstellen. "]
[null,"Wie füge ich weitere Kunden, Rechnungen und Rechnungsdetails hinzu?"]
[null,"Die Daten für Kunden, Rechnungen und Rechnungsdetails werden in Excel-Tabellen gespeichert. Wenn Sie einer Tabelle eine neue Zeile hinzufügen, wird die hinzugefügte Zeile automatisch formatiert, und alle Berechnungen werden kopiert. Um neue Tabellenzeilen hinzuzufügen, führen Sie eine der folgenden Aktionen aus:"]
[null,"● ","Wenn die Tabelle nicht über eine Ergebniszeile verfügt, beginnen Sie unterhalb der Tabelle mit der Eingabe, dann wird sie durch Drücken der EINGABE- oder TAB-TASTE automatisch erweitert."]
[null,"● ","Platzieren Sie Ihren Zeiger in der letzten Zelle oberhalb der Ergebniszeile, wie etwa in der Tabelle „Rechnungen“ in der Zelle „Notizen“ der letzten Rechnung, und drücken Sie dann die TAB-TASTE."]
[null,"● ","Klicken Sie auf der Registerkarte Start in der Gruppe Zellen auf Einfügen, und wählen Sie dann Tabellenzeile oberhalb oder Tabellenzeile unterhalb aus. "]
[null,"● ","Platzieren Sie in der unteren rechten Tabellenecke den Mauszeiger auf dem Ziehpunkt zum Ändern der Tabellengröße, und ziehen Sie nach unten, um die Anzahl der verfügbaren Tabellenzeilen zu erhöhen."]
[null,"Wie analysiere ich meine Rechnungsdetails?"]
[null,"Wie im Abschnitt „Informationen zum Rechnungstracker“ erwähnt, können Sie nach dem Eingeben mehrerer Rechnungen eine Liste aller Rechnungen für einen bestimmten Kunden, ein Projekt, ein bestimmtes Datumsintervall und vieles mehr anzeigen. Diese Art von Analyse wird mit einem Filter durchgeführt, der es Ihnen ermöglicht, eine Liste von Daten schnell einzugrenzen. Wenn Sie auf einen Filter in den Tabellen „Kunden“, „Rechnungen“ oder „Rechnungsdetails“ zugreifen möchten, wählen Sie einen Dropdownpfeil neben einem Tabellen-Feldnamen aus. Der angezeigte Filterbereich bietet Ihnen eine Vielzahl von Filteroptionen. Hier sind ein paar Beispiele zum Filtern, die Ihnen bei den ersten Schritten helfen:"]
[null,"● ","So zeigen Sie den Gesamtbetrag an, den Sie einem bestimmten Kunden in Rechnung gestellt haben: Wählen Sie auf dem Blatt „Rechnungen – Hauptblatt“ rechts neben dem Feld „Unternehmensnr.“ den Dropdownpfeil aus. Klicken Sie im Filterbereich auf „Alle auswählen“, um die Markierung aller Unternehmen aufzuheben. Wählen Sie das gewünschte Unternehmen und dann „OK“ aus. "]
[null,null,"Tipp: Im Bereich Filter können Sie auch den Namen des Kunden in das Suchtextfeld eingeben, um die verfügbare Liste schnell zu durchsuchen."]
[null,"● ","So zeigen Sie alle Rechnungen eines bestimmten Kunden und eines bestimmten Projekts an: Beginnen Sie, indem Sie wie in den Schritten im vorherigen Beispiel beschrieben nach dem gewünschten Kunden filtern. Wählen Sie dann rechts neben „Projektnr.“ den Dropdownpfeil aus. Wählen Sie im Filterbereich das gewünschte Projekt bzw. Projekte aus, und wählen Sie dann „OK“ aus. "]
[null,"● ","So zeigen Sie alle Rechnungen für den vorhergehenden Monat an: Klicken Sie auf dem Blatt „Rechnungen – Hauptblatt“ rechts neben dem Feld „Rechnungsdatum“ auf den Dropdownpfeil, zeigen Sie auf „Datumsfilter“, und wählen Sie dann „Letzter Monat“ aus."]
[null,"● ","So zeigen Sie alle Kunden mit der gleichen Ortsvorwahl an: Wählen Sie auf dem Blatt „Kunden“ rechts neben dem Feld „Telefon“ den Dropdownpfeil aus. Klicken Sie im Filterbereich in das Suchtextfeld, geben Sie die Ortsvorwahl ein, und wählen Sie dann OK aus. "]
[null,"Tipps zum Filtern"]
[null,"● ","Wenn eine Tabelle eine Ergebniszeile enthält, z. B. „Kunden“ und „Rechnungen“, wird in den berechneten Summen nur die gefilterte Liste berücksichtigt."]
[null,"● ","Verwenden Sie mehrere Filter für ein einzelnes Feld oder über mehrere Felder, um die Ergebnisse zu optimieren."]
[null,"● ","Um einen einzelnen Filter zu löschen, wählen Sie den Dropdownpfeil für eine zuvor gefilterte Spalte und dann Filter löschen ab <Feldname> aus."]
[null,"● ","Um mehrere Filter gleichzeitig zu löschen, setzen Sie den Mauszeiger in der Tabelle auf der Registerkarte Start in die Gruppe Bearbeiten und wählen Sie Sortieren und Filtern und dann Löschen aus."]